[Event "Portugal Honour 2021"]
[Site "Fatima"]
[Date "2021.04.08"]
[Round "4.7"]
[White "Lavrador, Rodolfo"]
[Black "Bartolo, Filipe"]
[Result "0-1"]
[ECO "B21"]
[WhiteElo "1815"]
[BlackElo "1876"]
[Annotator "NA RC"]
[PlyCount "96"]
[EventDate "2021.04.06"]
[EventType "tourn"]
[EventCountry "POR"]
[SourceTitle "playchess.com"]
[Source "ChessBase"]
[SourceQuality "1"]
[TimeControl "5400+30"]

1. e4 {[%emt 0:00:00]} c5 {[%emt 0:02:50]} 2. d4 {[%emt 0:00:00]} cxd4 {[%emt 0:00:04]} 3. c3 {[%emt 0:00:00]} dxc3 {[%emt 0:00:03]} 4. Nxc3 {[%emt 0:00:09]} Nc6 {[%emt 0:01:54]} 5. Nf3 {[%emt 0:00:17]} d6 {[%emt 0:00:12]} 6. Bc4 {[%emt 0:00:12]} e6 {[%emt 0:00:52]} 7. O-O {[%emt 0:00:22]} Nf6 {[%emt 0:00:04]} 8. Qe2 {[%emt 0:00:12]} a6 {[%emt 0:00:35]} 9. Rd1 {[%emt 0:00:10]} Qc7 {[%emt 0:00:39]} 10. Bg5 {[%emt 0:01:37]} Be7 {[%emt 0:02:02]} 11. Rac1 {[%emt 0:00:16]} Qb8 {[%emt 0:02:58]} 12. Bd3 {[%emt 0:01:24]} O-O {[%emt 0:00:31]} 13. Bb1 {[%emt 0:00:22]} Ne5 {[%emt 0:02:12]} 14. Nxe5 {[%emt 0:05:54]} dxe5 {[%emt 0:00:07]} 15. a3 {[%emt 0:00:16]} b5 {[%emt 0:00:08]} 16. h3 {[%emt 0:01:29]} Bb7 {[%emt 0:02:41]} 17. Bxf6 {[%emt 0:01:12]} Bxf6 {[%emt 0:00:17]} 18. Qg4 {[%emt 0:01:12]} Rd8 {[%emt 0:05:31]} 19. Ne2 {[%emt 0:00:21]} Rxd1+ {[%emt 0:03:38]} 20. Rxd1 {[%emt 0:00:13]} Qc7 {[%emt 0:01:28]} 21. Ng3 {[%emt 0:01:14]} Rd8 {[%emt 0:01:31]} 22. Re1 {[%emt 0:00:54]} Qe7 {[%emt 0:06:30]} 23. Kh2 {[%emt 0:07:46]} g6 {[%emt 0:08:17]} 24. Nf1 {[%emt 0:04:13]} Qc5 {[%emt 0:03:58]} 25. Qe2 {[%emt 0:04:10]} Bg5 {[%emt 0:02:29]} 26. g3 {[%emt 0:00:40]} Qd4 {[%emt 0:06:15]} 27. h4 Bh6 {[%emt 0:00:12]} 28. Kh3 {[%emt 0:03:25]} Rd6 {[%emt 0:16:54]} 29. h5 {[%emt 0:02:36]} (29. Nh2 $17) 29... Qb6 {[%emt 0:07:46]} 30. hxg6 {[%emt 0:01:13]} hxg6 {[%emt 0:00:08]} 31. f3 {[%emt 0:04:38]} Kg7 {[%emt 0:06:18]} 32. b4 {[%emt 0:03:27]} Qd8 {[%emt 0:03:31]} 33. Bc2 {[%emt 0:02:17]} Bc8 34. Rd1 {[%emt 0:00:09]} Rxd1 {[%emt 0:00:58]} 35. Qxd1 {[%emt 0:00:11]} Qxd1 36. Bxd1 {[%emt 0:05:41]} Bd7 {[%emt 0:01:18]} 37. Be2 {[%emt 0:00:30]} Bc1 {[%emt 0:01:05]} 38. a4 $19 {[%emt 0:00:00]} bxa4 {[%emt 0:00:08]} 39. Bxa6 {[%emt 0:00:21]} a3 {[%emt 0:00:19]} 40. Bc4 {[%emt 0:02:39]} Bb5 {[%emt 0:00:07]} 41. Ba2 {[%emt 0:00:07]} Bxf1+ {[%emt 0:00:09]} 42. Kg4 {[%emt 0:00:51]} Bd2 {[%emt 0:00:49]} 43. f4 {[%emt 0:00:22]} exf4 {[%emt 0:00:12]} 44. gxf4 {[%emt 0:00:30]} Bd3 {[%emt 0:00:30]} 45. Kf3 {[%emt 0:01:40]} Kf6 {[%emt 0:00:50]} 46. e5+ {[%emt 0:00:55]} Ke7 {[%emt 0:00:19]} 47. Bb3 {[%emt 0:00:42]} Bxb4 {[%emt 0:00:16]} 48. Ke3 {[%emt 0:00:22]} Bb1 {[%emt 0:00:18]} 0-1

[Event "Portugal Honour 2021"]
[Site "Fatima"]
[Date "2021.04.08"]
[Round "4.8"]
[White "Barrento, Jorge"]
[Black "Sarabando, Rodrigo"]
[Result "1-0"]
[ECO "A48"]
[WhiteElo "1724"]
[BlackElo "1682"]
[Annotator "NA RC"]
[PlyCount "131"]
[EventDate "2021.04.06"]
[EventType "tourn"]
[EventCountry "POR"]
[SourceTitle "playchess.com"]
[Source "ChessBase"]
[SourceQuality "1"]
[TimeControl "5400+30"]

1. d4 {[%emt 0:00:00]} Nf6 {[%emt 0:00:00]} 2. Nf3 {[%emt 0:00:00]} g6 {[%emt 0:00:34]} 3. Bg5 {[%emt 0:00:00]} Bg7 {[%emt 0:00:38]} 4. Nbd2 {[%emt 0:00:00]} d5 {[%emt 0:00:50]} 5. e3 {[%emt 0:00:10]} O-O {[%emt 0:00:33]} 6. Bd3 {[%emt 0:00:34]} c5 {[%emt 0:00:58]} 7. c3 Nc6 {[%emt 0:01:25]} 8. O-O {[%emt 0:02:59]} Re8 {[%emt 0:01:21]} 9. Ne5 {[%emt 0:03:17]} Nxe5 10. dxe5 {[%emt 0:00:10]} Ng4 {[%emt 0:01:10]} 11. Nf3 {[%emt 0:10:21]} Nxe5 {[%emt 0:00:31]} 12. Nxe5 {[%emt 0:00:13]} Bxe5 {[%emt 0:00:08]} 13. f4 {[%emt 0:00:07]} Bg7 {[%emt 0:00:23]} 14. f5 {[%emt 0:00:15]} Qb6 {[%emt 0:01:18]} 15. fxg6 {[%emt 0:02:50]} hxg6 {[%emt 0:00:51]} 16. Qf3 {[%emt 0:02:38]} Be6 {[%emt 0:01:18]} 17. Bc2 {[%emt 0:00:41]} Qxb2 {[%emt 0:01:26]} 18. Ba4 {[%emt 0:00:14]} Qxc3 {[%emt 0:01:29]} 19. Bxe8 {[%emt 0:01:48]} Rxe8 {[%emt 0:00:03]} 20. Rac1 {[%emt 0:03:28]} Qa5 {[%emt 0:00:15]} 21. Bf4 {[%emt 0:02:25]} c4 {[%emt 0:00:53]} 22. Qg3 {[%emt 0:00:26]} Bf5 {[%emt 0:01:25]} 23. Be5 {[%emt 0:01:49]} f6 {[%emt 0:00:24]} 24. Bc3 {[%emt 0:06:52]} Qd8 {[%emt 0:00:47]} 25. Rf4 {[%emt 0:04:18]} Qd7 {[%emt 0:01:07]} 26. Rd1 {[%emt 0:03:01]} Bd3 {[%emt 0:01:27]} 27. Rxd3 {[%emt 0:02:46]} cxd3 {[%emt 0:00:52]} 28. Qxg6 {[%emt 0:00:35]} Qe6 {[%emt 0:32:25]} 29. Qxe8+ Bf8 30. Qg6+ {[%emt 0:01:51]} Bg7 {[%emt 0:00:02]} 31. Qxd3 {[%emt 0:00:35]} Qc6 {[%emt 0:00:24]} 32. Rg4 {[%emt 0:01:09]} Qc5 {[%emt 0:00:42]} 33. Bd4 {[%emt 0:03:39]} Qc1+ {[%emt 0:00:38]} 34. Qf1 {[%emt 0:00:02]} Qc8 {[%emt 0:00:06]} 35. Rg3 {[%emt 0:01:18]} Qc6 {[%emt 0:00:17]} 36. h3 {[%emt 0:00:45]} e5 {[%emt 0:00:04]} 37. Bxa7 {[%emt 0:01:01]} Qe6 {[%emt 0:02:26]} 38. Qb1 {[%emt 0:00:51]} f5 {[%emt 0:00:44]} 39. Qxb7 {[%emt 0:00:35]} Qf6 {[%emt 0:00:23]} 40. Qxd5+ {[%emt 0:02:24]} Kh7 {[%emt 0:00:02]} 41. Qd7 {[%emt 0:01:02]} f4 {[%emt 0:00:34]} 42. Qxg7+ {[%emt 0:00:07]} Qxg7 {[%emt 0:00:19]} 43. Rxg7+ {[%emt 0:00:08]} Kxg7 {[%emt 0:00:01]} 44. exf4 {[%emt 0:00:01]} exf4 {[%emt 0:00:01]} 45. a4 {[%emt 0:00:01]} Kf6 {[%emt 0:00:06]} 46. a5 {[%emt 0:00:28]} Ke6 {[%emt 0:00:01]} 47. h4 {[%emt 0:00:14]} Kd6 {[%emt 0:00:09]} 48. Bb8+ {[%emt 0:00:07]} Ke6 {[%emt 0:00:07]} 49. Bxf4 {[%emt 0:00:06]} Kd7 {[%emt 0:00:14]} 50. h5 {[%emt 0:00:08]} Ke6 {[%emt 0:00:07]} 51. a6 {[%emt 0:00:07]} Kd7 {[%emt 0:00:06]} 52. a7 {[%emt 0:00:06]} Ke6 {[%emt 0:00:05]} 53. a8=B Kd7 54. Be4 {[%emt 0:01:33]} Ke6 {[%emt 0:00:36]} 55. Kf2 {[%emt 0:00:32]} Kf6 {[%emt 0:00:07]} 56. g4 {[%emt 0:00:14]} Ke6 {[%emt 0:00:05]} 57. h6 {[%emt 0:00:25]} Kf6 {[%emt 0:00:05]} 58. h7 {[%emt 0:01:04]} Ke6 {[%emt 0:00:06]} 59. Ke3 {[%emt 0:00:23]} Kf6 {[%emt 0:00:07]} 60. Kd4 {[%emt 0:00:43]} Ke6 {[%emt 0:00:09]} 61. Be5 {[%emt 0:01:28]} Ke7 {[%emt 0:00:03]} 62. Bd5 {[%emt 0:01:00]} Kd7 {[%emt 0:00:08]} 63. h8=Q Ke7 64. Qg7+ {[%emt 0:01:34]} Ke8 {[%emt 0:00:40]} 65. Bc6+ {[%emt 0:00:25]} Kd8 {[%emt 0:00:07]} 66. Qf8# 1-0

[Event "Portugal Honour 2021"]
[Site "Fatima"]
[Date "2021.04.08"]
[Round "4.9"]
[White "Santos, Julio"]
[Black "Pina, Tiago"]
[Result "0-1"]
[ECO "B32"]
[WhiteElo "1884"]
[BlackElo "1843"]
[Annotator "NA RC"]
[PlyCount "73"]
[EventDate "2021.04.06"]
[EventType "tourn"]
[EventCountry "POR"]
[SourceTitle "playchess.com"]
[Source "ChessBase"]
[SourceQuality "1"]
[TimeControl "5400+30"]

{[%evp 12,73,-59,-46,-25,-53,-29,-53,-61,-84,-41,-58,-37,-68,32767,32767,32767,32767,32767,32767,32767,32767,-86,-96,-96,-125,32767,32767,32767,32767,32767,32767,-66,32767,32767,-159,-120,-165,0,0,32767,32767,32767,32767,32767,32767,151,154,221,32767,129,141,165,-410,32767,-907,32767,-1026,32767,32767,32767,-29997,-29990,-29997]} 1. e4 {[%emt 0:00:00]} c5 {[%emt 0:00:00]} 2. Nf3 {[%emt 0:00:00]} Nc6 {[%emt 0:00:00]} 3. d4 {[%emt 0:00:00]} cxd4 {[%emt 0:00:00]} 4. Nxd4 {[%emt 0:00:00]} e5 {[%emt 0:00:06]} 5. Nb3 {[%emt 0:00:41]} Nf6 {[%emt 0:00:08]} 6. N1d2 {[%emt 0:05:48]} d5 {[%emt 0:05:31]} 7. exd5 {[%emt 0:00:21]} Nxd5 {[%emt 0:00:08]} 8. Be2 {[%emt 0:03:35]} Be7 {[%emt 0:00:36]} 9. O-O {[%emt 0:00:09]} O-O {[%emt 0:00:16]} 10. Re1 {[%emt 0:01:03]} Be6 {[%emt 0:00:28]} 11. Bb5 {[%emt 0:00:39]} Qc7 {[%emt 0:05:48]} 12. Bxc6 {[%emt 0:01:03]} bxc6 {[%emt 0:00:09]} 13. Nc4 {[%emt 0:00:18]} f6 {[%emt 0:01:01]} 14. Qe2 {[%emt 0:02:10]} Bf7 {[%emt 0:01:30]} 15. Ne3 {[%emt 0:03:31]} Nf4 {[%emt 0:04:14]} 16. Qf3 {[%emt 0:00:17]} g6 {[%emt 0:12:15]} 17. g3 {[%emt 0:02:23] [#]} Nh3+ $1 {[%emt 0:12:28]} 18. Kh1 {[%emt 0:06:09]} Ng5 {[%emt 0:00:49]} 19. Qe2 {[%emt 0:01:08]} f5 {[%emt 0:09:54]} 20. h4 {[%emt 0:03:06]} Ne4 {[%emt 0:03:29]} 21. Nd2 {[%emt 0:03:46] [#]} Nxd2 {[%emt 0:09:05]} ({Better is} 21... Nf6 $1 $17 22. Ng2 f4 23. gxf4 Qd7) 22. Bxd2 {[%emt 0:00:02]} f4 {[%emt 0:00:16]} 23. Ng4 {[%emt 0:02:22]} (23. gxf4 $1 $15 exf4 24. Ng4 Bxh4 25. Nh6+ Kg7 26. Nxf7 Qxf7 27. Qf3) 23... Bd5+ {[%emt 0:00:15]} 24. Kh2 {[%emt 0:06:08] [#]} fxg3+ {[%emt 0:05:36]} (24... Bd6 $1 $17 25. gxf4 Qd8) 25. fxg3 {[%emt 0:00:02]} Bxh4 {[%emt 0:09:38]} 26. Nxe5 {[%emt 0:01:26]} Bxg3+ {[%emt 0:00:20]} 27. Kxg3 {[%emt 0:02:04]} Rae8 {[%emt 0:04:44]} 28. Bf4 {[%emt 0:10:45]} g5 {[%emt 0:04:05] [#]} (28... Rf5 $1 $11 {keeps the balance.}) 29. Qg4 $1 {[%emt 0:02:38]} Re7 {[%emt 0:01:08]} (29... h6 $16 {is a better defense.} 30. Nd3 Rxe1 31. Rxe1 (31. Bxc7 Rxa1 32. Qe2 Rf3+ 33. Qxf3 Bxf3 $11) 31... Qc8) 30. Kh2 {[%emt 0:03:06]} Rg7 {[%emt 0:02:25]} 31. Bg3 {[%emt 0:00:25]} ({But not} 31. Bxg5 $2 h6 $19) 31... h5 {[%emt 0:00:39]} 32. Qe2 $2 {[%emt 0:01:39]} (32. Qxh5 {leads to mate.} Rh7 33. Qh4 gxh4 34. Bf4 Rxf4 35. Rg1+ Rg7 36. Rg6 Qxe5 37. Rxg7+ Qxg7 38. Rg1 Rf2+ {[%mdl 64] Double Attack} 39. Kh3 Qxg1 40. Kxh4 Rh2#) (32. Qb4 $16 {is necessary to keep the advantage.} Rb8 33. Qd4) 32... h4 {[%emt 0:00:33]} 33. Bf2 {[%emt 0:00:43]} (33. c4 $142 hxg3+ 34. Kxg3) 33... g4 {[%emt 0:03:54]} 34. Bxh4 {[%emt 0:03:07]} Rf3 {[%emt 0:00:30]} 35. Kg1 {[%emt 0:17:39]} Rh3 {[%emt 0:01:01]} 36. Nxg4 {[%emt 0:04:08]} Rxh4 {[%emt 0:01:10]} 37. Kf2 0-1

[Event "Portugal Honour 2021"]
[Site "Fatima"]
[Date "2021.04.09"]
[Round "5.6"]
[White "Basilio, Rodrigo"]
[Black "Goncalves, Carlos"]
[Result "1-0"]
[ECO "B15"]
[WhiteElo "1849"]
[BlackElo "1600"]
[Annotator "NA"]
[PlyCount "83"]
[EventDate "2021.04.06"]
[EventType "tourn"]
[EventCountry "POR"]
[SourceTitle "playchess.com"]
[Source "ChessBase"]
[SourceQuality "1"]
[TimeControl "5400+30"]

1. e4 {[%emt 0:00:00]} c6 {[%emt 0:00:40]} 2. d4 {[%emt 0:00:00]} d5 {[%emt 0:00:24]} 3. Nd2 {[%emt 0:00:00]} dxe4 {[%emt 0:00:28]} 4. Nxe4 {[%emt 0:00:04]} Nf6 {[%emt 0:00:33]} 5. Nxf6+ {[%emt 0:00:17]} exf6 {[%emt 0:00:26]} 6. c3 {[%emt 0:00:26]} Bd6 {[%emt 0:01:08]} 7. Bd3 {[%emt 0:00:13]} O-O {[%emt 0:01:01]} 8. Ne2 {[%emt 0:00:09]} Re8 {[%emt 0:01:16]} 9. Qc2 {[%emt 0:00:41]} h5 {[%emt 0:03:57]} 10. Be3 {[%emt 0:00:27]} Nd7 {[%emt 0:02:22]} 11. O-O-O {[%emt 0:00:41]} Nf8 {[%emt 0:00:29]} 12. Ng3 {[%emt 0:06:13]} h4 {[%emt 0:03:38]} 13. Ne4 {[%emt 0:01:51]} Be6 {[%emt 0:00:31]} 14. Kb1 {[%emt 0:05:38]} b5 {[%emt 0:00:28]} 15. h3 {[%emt 0:09:27]} a5 {[%emt 0:01:24]} 16. Nd2 {[%emt 0:03:25]} Bc7 {[%emt 0:00:47]} 17. Nf3 {[%emt 0:06:04]} Qd5 {[%emt 0:01:05]} 18. c4 {[%emt 0:04:43]} bxc4 {[%emt 0:08:36]} 19. Be4 {[%emt 0:00:01]} Qb5 {[%emt 0:02:46]} 20. a4 {[%emt 0:00:50]} Qa6 {[%emt 0:01:22]} 21. Nxh4 {[%emt 0:01:10]} Rab8 {[%emt 0:00:53]} 22. Bd2 {[%emt 0:05:51]} Rxb2+ {[%emt 0:01:04]} 23. Kxb2 {[%emt 0:00:31]} Qb6+ {[%emt 0:01:27]} 24. Ka1 {[%emt 0:00:15]} Qxd4+ {[%emt 0:00:50]} 25. Bc3 {[%emt 0:00:01]} Qc5 {[%emt 0:00:34]} 26. Rc1 {[%emt 0:02:06]} Be5 {[%emt 0:00:56]} 27. Qa2 {[%emt 0:02:52]} Rb8 {[%emt 0:01:11]} 28. Nf3 {[%emt 0:00:15]} Rb3 {[%emt 0:01:26]} 29. Nxe5 {[%emt 0:00:13]} Ra3 {[%emt 0:01:17]} 30. Nxc6 {[%emt 0:00:43]} Rxa2+ {[%emt 0:00:16]} 31. Kxa2 {[%emt 0:00:02]} f5 {[%emt 0:02:12]} 32. Bf3 {[%emt 0:01:43]} Qxf2+ {[%emt 0:00:08]} 33. Ka1 {[%emt 0:00:49]} Qc5 {[%emt 0:00:42]} 34. Bb2 {[%emt 0:03:28]} Bd7 {[%emt 0:02:25]} 35. Ne5 {[%emt 0:01:10]} Be6 {[%emt 0:03:56]} 36. Rhe1 {[%emt 0:14:02]} Qb4 {[%emt 0:03:20]} 37. Bc6 {[%emt 0:00:21]} f6 {[%emt 0:02:24]} 38. Nf3 {[%emt 0:01:00]} Qb6 {[%emt 0:04:04]} 39. Nd4 {[%emt 0:04:05]} Bf7 {[%emt 0:01:07]} 40. Bb5 {[%emt 0:02:25]} Ne6 {[%emt 0:01:08]} 41. Nxe6 {[%emt 0:00:33]} Bxe6 {[%emt 0:00:12]} 42. Rxe6 {[%emt 0:00:16]} 1-0

[Event "Portugal Honour 2021"]
[Site "Fatima"]
[Date "2021.04.09"]
[Round "5.7"]
[White "Pina, Tiago"]
[Black "Morais, Vitor"]
[Result "1/2-1/2"]
[ECO "B34"]
[WhiteElo "1843"]
[BlackElo "1904"]
[Annotator "NA"]
[PlyCount "85"]
[EventDate "2021.04.06"]
[EventType "tourn"]
[EventCountry "POR"]
[SourceTitle "playchess.com"]
[Source "ChessBase"]
[SourceQuality "1"]
[TimeControl "5400+30"]

1. e4 {[%emt 0:00:00]} c5 {[%emt 0:01:21]} 2. Nf3 {[%emt 0:00:00]} Nc6 {[%emt 0:00:08]} 3. d4 {[%emt 0:00:00]} cxd4 {[%emt 0:00:07]} 4. Nxd4 {[%emt 0:00:00]} Nf6 {[%emt 0:00:09]} 5. Nc3 {[%emt 0:00:04]} e5 {[%emt 0:00:08]} 6. Ndb5 {[%emt 0:00:07]} d6 {[%emt 0:00:08]} 7. Nd5 {[%emt 0:00:16]} Nxd5 {[%emt 0:00:10]} 8. exd5 {[%emt 0:00:09]} Ne7 {[%emt 0:00:08]} 9. c4 {[%emt 0:00:08]} Nf5 {[%emt 0:00:08]} 10. Bd3 {[%emt 0:00:40]} a6 {[%emt 0:00:08]} 11. Qa4 {[%emt 0:03:41]} Bd7 {[%emt 0:01:18]} 12. Bxf5 {[%emt 0:00:24]} axb5 {[%emt 0:00:10]} 13. Bxd7+ {[%emt 0:00:07]} Ke7 {[%emt 0:00:13]} 14. Qxb5 {[%emt 0:01:01]} Qxd7 {[%emt 0:00:08]} 15. Bg5+ {[%emt 0:00:21]} f6 {[%emt 0:00:15]} 16. Qxd7+ {[%emt 0:00:10]} Kxd7 {[%emt 0:00:08]} 17. Be3 {[%emt 0:00:08]} Be7 {[%emt 0:00:20]} 18. O-O {[%emt 0:07:12]} f5 {[%emt 0:00:12]} 19. a4 {[%emt 0:02:15]} f4 {[%emt 0:00:10]} 20. Bb6 {[%emt 0:00:09]} g5 {[%emt 0:00:28]} 21. f3 {[%emt 0:01:02]} h5 {[%emt 0:00:08]} 22. b4 {[%emt 0:00:45]} Rac8 {[%emt 0:00:19]} 23. Rac1 {[%emt 0:00:25]} g4 {[%emt 0:00:13]} 24. c5 {[%emt 0:04:22]} Rhg8 {[%emt 0:00:24]} 25. a5 {[%emt 0:01:11]} Bd8 {[%emt 0:03:05]} 26. Rc3 {[%emt 0:04:19]} Bxb6 {[%emt 0:02:30]} 27. axb6 {[%emt 0:00:10]} Rg6 {[%emt 0:00:29]} 28. Rfc1 {[%emt 0:00:23]} gxf3 {[%emt 0:00:58]} 29. Rxf3 {[%emt 0:00:10]} dxc5 {[%emt 0:00:08]} 30. bxc5 {[%emt 0:00:18]} Rxb6 {[%emt 0:00:07]} 31. Rfc3 {[%emt 0:01:23]} Rb5 {[%emt 0:00:44]} 32. c6+ {[%emt 0:00:28]} Kd6 {[%emt 0:00:28]} 33. Rd1 {[%emt 0:02:01]} Rc7 {[%emt 0:03:52]} 34. Kf2 {[%emt 0:03:07]} Rxd5 {[%emt 0:00:12]} 35. cxb7 {[%emt 0:01:28]} Rxb7 {[%emt 0:00:12]} 36. Rxd5+ {[%emt 0:00:13]} Kxd5 {[%emt 0:00:08]} 37. Rc8 {[%emt 0:00:24]} Rh7 {[%emt 0:01:29]} 38. Kf3 {[%emt 0:00:18]} h4 {[%emt 0:00:26]} 39. Rd8+ {[%emt 0:00:23]} Ke6 {[%emt 0:00:25]} 40. Re8+ {[%emt 0:00:06]} Kf6 {[%emt 0:00:15]} 41. Rf8+ {[%emt 0:00:13]} Ke7 {[%emt 0:00:12]} 42. Ra8 {[%emt 0:00:16]} Kf6 {[%emt 0:00:24]} 43. Rf8+ {[%emt 0:00:27]} 1/2-1/2

[Event "Portugal Honour 2021"]
[Site "Fatima"]
[Date "2021.04.09"]
[Round "5.8"]
[White "Sarabando, Rodrigo"]
[Black "Santos, Julio"]
[Result "1/2-1/2"]
[ECO "D11"]
[WhiteElo "1682"]
[BlackElo "1884"]
[Annotator "NA"]
[PlyCount "113"]
[EventDate "2021.04.06"]
[EventType "tourn"]
[EventCountry "POR"]
[SourceTitle "playchess.com"]
[Source "ChessBase"]
[SourceQuality "1"]
[TimeControl "5400+30"]

1. d4 {[%emt 0:00:00]} d5 {[%emt 0:00:00]} 2. c4 {[%emt 0:00:25]} c6 {[%emt 0:00:06]} 3. Nf3 {[%emt 0:00:21]} g6 {[%emt 0:00:36]} 4. g3 {[%emt 0:01:14]} Bg7 {[%emt 0:00:10]} 5. Bg2 {[%emt 0:00:38]} dxc4 {[%emt 0:01:09]} 6. O-O {[%emt 0:01:57]} b5 {[%emt 0:01:46]} 7. Bf4 {[%emt 0:04:23]} Bb7 {[%emt 0:00:19]} 8. Nc3 {[%emt 0:02:19]} e6 {[%emt 0:01:02]} 9. Ne4 {[%emt 0:07:06]} Bf8 {[%emt 0:01:36]} 10. Qc2 {[%emt 0:03:22]} Nd7 {[%emt 0:03:42]} 11. Rfd1 {[%emt 0:11:18]} Ngf6 {[%emt 0:09:30]} 12. Be5 {[%emt 0:16:55]} Be7 {[%emt 0:01:20]} 13. Nc5 {[%emt 0:04:26]} Qc8 {[%emt 0:00:38]} 14. b4 {[%emt 0:03:46]} O-O {[%emt 0:02:46]} 15. Bh3 {[%emt 0:02:50]} a5 {[%emt 0:08:42]} 16. a3 {[%emt 0:00:49]} axb4 {[%emt 0:06:31]} 17. axb4 {[%emt 0:00:23]} Nd5 {[%emt 0:00:13]} 18. Rxa8 {[%emt 0:03:10]} Bxa8 {[%emt 0:00:40]} 19. Qb2 {[%emt 0:00:34]} Nxe5 {[%emt 0:06:51]} 20. Nxe5 {[%emt 0:02:40]} Nb6 {[%emt 0:00:35]} 21. Bg2 {[%emt 0:02:08]} Rd8 {[%emt 0:01:28]} 22. Qc2 {[%emt 0:04:39]} Kg7 {[%emt 0:03:37]} 23. e3 {[%emt 0:02:24]} f6 {[%emt 0:04:50]} 24. Nf3 {[%emt 0:01:04]} Bb7 {[%emt 0:00:14]} 25. h4 {[%emt 0:01:25]} Bxc5 {[%emt 0:05:51]} 26. bxc5 {[%emt 0:01:19]} Nd5 {[%emt 0:02:45]} 27. Nd2 {[%emt 0:05:22]} Qc7 {[%emt 0:06:22]} 28. Ra1 {[%emt 0:01:46]} Ra8 {[%emt 0:00:44]} 29. Rxa8 {[%emt 0:00:35]} Bxa8 {[%emt 0:00:01]} 30. Qa2 {[%emt 0:00:51]} Qb8 {[%emt 0:00:15]} 31. Ne4 {[%emt 0:00:55]} b4 {[%emt 0:04:13]} 32. Qxc4 {[%emt 0:02:55]} b3 {[%emt 0:00:12]} 33. Nd2 {[%emt 0:00:31]} b2 {[%emt 0:00:15]} 34. Qc2 {[%emt 0:01:24]} Qb4 {[%emt 0:01:31]} 35. Nb1 {[%emt 0:00:35]} Bb7 {[%emt 0:00:53]} 36. Bf1 {[%emt 0:01:11]} e5 {[%emt 0:00:37]} 37. e4 {[%emt 0:02:37]} Nc7 {[%emt 0:00:36]} 38. dxe5 {[%emt 0:04:52]} fxe5 {[%emt 0:00:12]} 39. Qd3 {[%emt 0:02:00]} Qd4 {[%emt 0:04:43]} 40. Qc2 {[%emt 0:01:00]} Na6 {[%emt 0:02:57]} 41. Qd2 {[%emt 0:01:35]} Qxd2 {[%emt 0:01:49]} 42. Nxd2 {[%emt 0:00:01]} Nxc5 {[%emt 0:00:14]} 43. f3 {[%emt 0:00:05]} Nb3 {[%emt 0:03:33]} 44. Nb1 {[%emt 0:00:13]} Na5 {[%emt 0:00:08]} 45. Kf2 {[%emt 0:00:07]} Bc8 {[%emt 0:00:30]} 46. Ke3 {[%emt 0:00:18]} Be6 {[%emt 0:00:18]} 47. Kd2 {[%emt 0:00:10]} Bc4 {[%emt 0:09:34]} 48. Bxc4 {[%emt 0:00:47]} Nxc4+ {[%emt 0:00:02]} 49. Kd3 {[%emt 0:00:25]} Nb6 {[%emt 0:00:45]} 50. Kc3 {[%emt 0:00:34]} c5 {[%emt 0:00:13]} 51. Kxb2 {[%emt 0:00:45]} Kf6 {[%emt 0:00:12]} 52. g4 {[%emt 0:00:50]} h6 {[%emt 0:00:32]} 53. Kc3 {[%emt 0:00:07]} Ke6 {[%emt 0:00:15]} 54. Na3 {[%emt 0:00:47]} Kd6 {[%emt 0:00:19]} 55. Kd3 {[%emt 0:00:37]} Kc6 {[%emt 0:00:46]} 56. Kc3 {[%emt 0:00:17]} Kd6 {[%emt 0:00:37]} 57. Kd3 {[%emt 0:00:02]} 1/2-1/2

[Event "Portugal Honour 2021"]
[Site "Fatima"]
[Date "2021.04.09"]
[Round "5.9"]
[White "Bartolo, Filipe"]
[Black "Barrento, Jorge"]
[Result "1-0"]
[ECO "B01"]
[WhiteElo "1876"]
[BlackElo "1724"]
[Annotator "NA"]
[PlyCount "71"]
[EventDate "2021.04.06"]
[EventType "tourn"]
[EventCountry "POR"]
[SourceTitle "playchess.com"]
[Source "ChessBase"]
[SourceQuality "1"]
[TimeControl "5400+30"]

1. e4 {[%emt 0:04:19]} d5 {[%emt 0:00:27]} 2. exd5 {[%emt 0:00:05]} Nf6 {[%emt 0:00:06]} 3. Nf3 {[%emt 0:00:04]} Qxd5 {[%emt 0:01:32]} 4. d4 {[%emt 0:00:18]} Bg4 {[%emt 0:01:08]} 5. Be2 {[%emt 0:00:06]} Nc6 {[%emt 0:01:13]} 6. O-O {[%emt 0:00:24]} O-O-O {[%emt 0:00:23]} 7. c4 {[%emt 0:01:48]} Qd7 {[%emt 0:01:03]} 8. d5 {[%emt 0:05:32]} Bxf3 {[%emt 0:00:52]} 9. Bxf3 {[%emt 0:01:15]} Ne5 {[%emt 0:00:55]} 10. Be2 {[%emt 0:13:22]} e6 {[%emt 0:02:53]} 11. Bg5 {[%emt 0:02:18]} Kb8 {[%emt 0:02:27]} 12. Nc3 {[%emt 0:01:27]} Be7 {[%emt 0:05:55]} 13. f4 {[%emt 0:27:53]} Ng6 {[%emt 0:10:34]} 14. Bf3 {[%emt 0:19:14]} h6 {[%emt 0:05:42]} 15. Bxf6 {[%emt 0:00:29]} gxf6 {[%emt 0:00:22]} 16. Qb3 {[%emt 0:06:33]} Qc8 {[%emt 0:07:17]} 17. dxe6 {[%emt 0:11:30]} Nh4 {[%emt 0:07:40]} 18. exf7 {[%emt 0:00:38]} Nxf3+ {[%emt 0:01:06]} 19. Rxf3 {[%emt 0:00:07]} Qe6 {[%emt 0:00:24]} 20. Na4 {[%emt 0:01:09]} Qxf7 {[%emt 0:00:55]} 21. Re1 {[%emt 0:00:50]} Rhg8 {[%emt 0:02:04]} 22. Rfe3 {[%emt 0:00:47]} Rd2 {[%emt 0:03:16]} 23. R1e2 {[%emt 0:00:22]} Rxe2 {[%emt 0:02:00]} 24. Rxe2 {[%emt 0:00:04]} Bd6 {[%emt 0:01:14]} 25. Qe3 {[%emt 0:01:02]} Qd7 {[%emt 0:14:26]} 26. Qe6 {[%emt 0:00:34]} Qxe6 {[%emt 0:04:10]} 27. Rxe6 {[%emt 0:00:05]} Bxf4 {[%emt 0:00:35]} 28. Rxf6 {[%emt 0:00:12]} Bg5 {[%emt 0:00:53]} 29. Rf7 {[%emt 0:00:31]} b6 {[%emt 0:02:42]} 30. Nc3 {[%emt 0:00:13]} Rd8 {[%emt 0:01:23]} 31. Kf1 {[%emt 0:00:49]} Rd2 {[%emt 0:01:13]} 32. Rf2 {[%emt 0:00:06]} Rd4 {[%emt 0:00:59]} 33. b3 {[%emt 0:00:13]} Rd3 {[%emt 0:04:38]} 34. Ne4 {[%emt 0:00:18]} Be3 {[%emt 0:01:49]} 35. Rf8+ {[%emt 0:00:47]} Kb7 {[%emt 0:00:01]} 36. Ke2 {[%emt 0:00:12]} 1-0